bitfinex/quotes_ETHUSD_20241130
["timestamp","ask_amount","ask_price","bid_price","bid_amount"]
[1732989840626,1.17007805,3680.5,3680.4,2.71705]
[1732989840840,1.42424548,3680.5,3680.4,2.71705]
[1732989841067,0.25416743,3680.5,3680.4,2.71705]
[1732989841339,0.4067347,3680.9,3680.4,2.71705]
[1732989841340,0.25416743,3680.8,3680.6,2.71694]
[1732989841545,1.42424548,3680.7,3680.6,2.71694]
[1732989843385,1.42424548,3680.7,3680.4,0.8164]
[1732989843562,0.25416743,3680.6,3680.5,2.717]
[1732989843761,1.17007805,3680.7,3680.5,2.717]
[1732989844108,1.17007805,3680.7,3680.6,2.71694]
[1732989844271,1.42431758,3680.7,3680.6,2.71694]
[1732989845999,1.42431758,3680.7,3680.4,2.71708]
[1732989846202,1.17007805,3680.5,3680.4,2.71708]
[1732989846497,1.42431758,3680.5,3680.4,2.71708]
[1732989847765,1.42438862,3680.5,3680.4,2.71708]
[1732989849715,1.42443058,3680.5,3680.4,2.71708]
[1732989850415,1.96031959,3680.5,3680.4,2.71708]
[1732989851085,1.96034345,3680.5,3680.4,2.71708]
[1732989851484,1.70596706,3680.5,3680.4,2.71708]
[1732989851686,1.96037148,3680.5,3680.4,2.71708]
[1732989852586,1.96037148,3680.5,3680.4,3.51118]
[1732989854481,1.96037148,3680.5,3680.4,2.71708]
[1732989857022,1.70596706,3680.5,3680.4,2.71708]
[1732989857219,1.9604594,3680.5,3680.4,2.71708]
[1732989857618,1.96047061,3680.5,3680.4,2.71708]
[1732989857961,1.96047005,3680.5,3680.4,2.71708]
[1732989858116,1.70596706,3680.5,3680.4,2.71708]
[1732989858818,1.96047593,3680.5,3680.4,2.71708]
[1732989859442,0.79039788,3680.5,3680.4,2.71708]
[1732989861771,2.73627593,3680.5,3680.4,2.71708]
[1732989861930,2.48176706,3680.5,3680.4,2.71708]
[1732989862131,2.73630997,3680.5,3680.4,2.71708]
[1732989863973,1.96050997,3680.5,3680.4,2.71708]
[1732989864525,0.79043192,3680.5,3680.4,2.71708]
[1732989869276,0.79053763,3680.5,3680.4,2.71708]
[1732989871962,0.79053763,3680.5,3680.4,3.337312]
[1732989872333,0.53588901,3680.5,3680.4,3.337312]
[1732989873339,1.13805495,3681.1,3681.0,2.71665]
[1732989873551,5.19717379,3681.1,3681.0,2.71665]
[1732989875275,4.05918691,3681.1,3681.0,2.71665]
[1732989875482,2.64489967,3681.1,3681.0,2.71665]
[1732989875875,1.47482162,3681.1,3681.0,2.71665]
[1732989877139,0.53196346,3681.1,3681.0,2.71665]
[1732989877878,1.13805495,3681.4,3681.0,2.71665]
[1732989877879,2.55195949,3681.4,3681.3,2.71643]
[1732989878087,1.13805495,3681.6,3681.5,2.71628]
[1732989878244,0.94253891,3681.6,3681.5,2.71628]
[1732989878878,1.49879797,3681.6,3681.5,2.71628]
[1732989880395,0.55625906,3681.6,3681.5,2.71628]
[1732989881741,0.81033953,3681.6,3681.5,2.71628]
[1732989883388,0.55625906,3681.6,3681.5,2.71628]
[1732989885999,1.17007805,3681.9,3681.7,2.71607]
[1732989886147,1.42389866,3681.9,3681.8,2.71606]
[1732989886350,1.17007805,3681.9,3681.8,2.71606]
[1732989886582,1.70869905,3681.9,3681.8,2.71606]
[1732989886783,1.96252131,3681.9,3681.8,2.71606]
[1732989887298,1.70869905,3681.9,3681.8,2.71606]
[1732989887751,1.96252131,3681.9,3681.8,2.71606]
[1732989888097,1.70869905,3681.9,3681.8,2.71606]
[1732989888602,0.7843,3681.8,3681.7,2.71609]
[1732989888785,1.03812226,3681.8,3681.7,2.71609]
[1732989889165,0.7843,3681.8,3681.7,2.71609]
[1732989889690,1.03812226,3681.8,3681.6,2.71619]
[1732989889994,2.3401561,3681.7,3681.2,2.71648]
[1732989890151,0.7843,3681.2,3680.5,2.71702]
[1732989890355,1.17007805,3681.0,3680.9,2.1893127]
[1732989890591,1.95437805,3681.2,3681.1,2.71657]
[1732989891550,1.95437805,3681.2,3680.9,2.1893127]
[1732989891862,1.17007805,3681.0,3680.6,2.71691]
[1732989892063,0.19543781,3681.2,3680.6,2.71691]
[1732989892064,1.17007805,3680.7,3680.6,2.71691]
[1732989893606,1.17007805,3680.7,3680.4,2.71704]
[1732989893607,0.7843,3680.6,3680.4,2.71704]
[1732989893764,1.17007805,3680.5,3680.2,2.71722]
[1732989894096,0.7843,3680.6,3680.2,2.71722]
[1732989894097,1.17007805,3680.3,3680.2,2.71722]
[1732989894596,1.17007805,3680.3,3680.0,2.71736]
[1732989894898,0.7843,3680.6,3680.1,2.71729]
[1732989895071,1.17007805,3680.2,3680.1,2.71729]
[1732989896004,1.17007805,3680.2,3679.9,2.71745]
[1732989896303,1.17007805,3680.0,3679.9,2.71745]
[1732989896650,1.17007805,3680.0,3679.7,2.7176]
[1732989897850,1.17007805,3679.8,3679.7,2.7176]
[1732989898597,1.17007805,3679.8,3679.5,5.4355]
[1732989899100,1.17007805,3679.8,3679.7,2.71761]
[1732989900690,1.17007805,3679.8,3679.5,2.71775]
[1732989900909,1.17007805,3679.6,3679.5,2.71775]
[1732989903994,1.71130759,3679.8,3679.7,2.71761]
[1732989905873,1.71130759,3679.8,3679.5,2.71775]
[1732989906073,1.17007805,3679.6,3679.5,2.71775]
[1732989906922,1.17007805,3679.6,3679.3,5.4358]
[1732989907100,1.96207805,3679.6,3679.3,5.4358]
[1732989907299,1.17007805,3679.4,3679.3,2.7179]
[1732989909586,1.17007805,3679.4,3679.1,2.71804]
[1732989909787,0.792,3679.1,3677.5,2.71919]
[1732989909985,1.17007805,3678.5,3678.4,2.71857]
[1732989910417,1.17007805,3678.5,3678.2,3.51376]
[1732989910418,1.17007805,3678.5,3678.2,2.71865]
[1732989910651,0.792,3678.5,3678.3,2.71864]
[1732989910914,1.17007805,3678.4,3678.3,2.71864]
[1732989911124,0.55626985,3678.5,3678.4,2.71857]
[1732989911683,0.55626985,3678.5,3678.4,3.51367]
[1732989912176,1.17007805,3679.1,3679.0,2.7181]
[1732989912973,0.792,3679.5,3679.1,2.71799]
[1732989913404,0.792,3679.5,3679.2,2.71798]
[1732989913642,0.792,3679.5,3678.4,0.7951]
[1732989913849,2.59433364,3679.6,3679.4,2.71783]
[1732989914165,0.33863336,3679.5,3679.4,2.71783]
[1732989914478,0.88610025,3679.5,3679.1,3.51308]
[1732989914609,0.88610025,3679.5,3679.2,2.71791]
[1732989915420,0.88610025,3679.5,3679.1,2.71798]
[1732989915722,0.88610025,3679.5,3679.4,2.71783]
[1732989916251,0.54746689,3679.5,3679.4,2.71783]
[1732989925516,0.54746689,3679.5,3679.4,3.50623]
[1732989929204,0.54746689,3679.5,3679.4,2.71783]
[1732989929933,0.54746689,3679.5,3679.2,2.71797]
[1732989930288,0.54746689,3679.5,3678.5,0.7884]
[1732989930529,0.94248694,3679.5,3678.9,2.71813]
[1732989931130,0.94248694,3679.5,3679.0,2.71811]
[1732989932258,0.07370868,3679.4,3679.0,2.71811]
[1732989933082,0.07370868,3679.4,3679.1,2.71799]
[1732989934742,0.07370868,3679.4,3678.6,0.02718135]
[1732989934948,1.24436504,3679.4,3679.3,2.7179]
[1732989936248,1.24436504,3679.4,3679.1,2.71804]
[1732989937385,0.55,3679.3,3679.1,2.71804]
[1732989937896,0.07215497,3679.2,3679.1,2.71804]
[1732989941988,0.07215497,3679.2,3679.1,3.53074]
[1732989942166,1.38024748,3679.8,3679.7,2.71761]
[1732989942556,1.17065636,3680.1,3679.9,2.71746]
[1732989942760,0.19544564,3680.0,3679.9,2.71746]
[1732989943783,0.75046498,3680.0,3679.9,2.71746]
[1732989943987,0.55501934,3680.0,3679.9,2.71746]
[1732989946096,2.37858038,3680.6,3680.5,2.71702]
[1732989946257,2.22603959,3680.6,3680.5,2.71702]
[1732989946457,1.97688569,3680.6,3680.5,2.71702]
[1732989948697,1.97688569,3680.6,3680.3,2.71715]
[1732989948997,0.25428323,3680.5,3680.4,2.71708]
[1732989949877,0.32724461,3680.5,3680.4,2.71708]
[1732989951732,0.07296138,3680.5,3680.4,2.71708]
[1732989957847,0.07296138,3680.5,3680.4,3.52368]
[1732989961348,0.07296138,3680.5,3680.4,2.71708]
[1732989961531,1.24361774,3680.5,3680.4,2.71708]
[1732989962522,1.24361774,3680.5,3680.3,2.71714]
[1732989963975,1.24361774,3680.5,3680.3,2.71716]
[1732989964342,1.53094079,3680.5,3680.0,2.71738]
[1732989964658,1.17065636,3680.2,3680.0,2.71738]
[1732989965030,0.07049684,3680.1,3680.0,2.71738]
[1732989965234,0.07049684,3680.1,3680.0,3.52308]
[1732989965473,1.17065636,3680.5,3680.0,1.429761]
[1732989965767,1.17065636,3680.5,3680.4,2.71709]
[1732989966181,1.24137229,3680.5,3680.4,2.71709]
[1732989967239,1.79137229,3680.5,3680.2,2.71719]
[1732989967441,0.7759,3680.4,3679.8,2.71753]
[1732989967683,1.17065636,3680.1,3679.3,2.71789]
[1732989967985,1.17065636,3679.6,3679.3,2.71789]
[1732989968183,1.17065636,3679.6,3679.2,0.8057]
[1732989968184,1.17065636,3679.6,3679.4,2.71782]
[1732989968384,0.07012613,3679.5,3679.4,2.71782]
[1732989969042,0.60828659,3679.5,3679.2,3.52367]
[1732989969244,1.17065636,3679.4,3679.2,2.71797]
[1732989969466,0.07000136,3679.3,3679.2,2.71797]
[1732989971236,0.53816046,3679.5,3679.2,2.71797]
[1732989971443,0.07005616,3679.4,3679.2,2.71797]
[1732989974290,0.07005616,3679.4,3678.9,0.7502]
[1732989974796,2.59384346,3679.3,3678.8,2.71826]
[1732989975159,0.06994656,3679.2,3678.8,2.71826]
[1732989975804,0.06994656,3679.2,3678.7,3.4685]
[1732989976582,0.06994656,3679.2,3678.8,2.71826]
[1732989977555,0.06994656,3679.2,3678.7,0.7502]
[1732989977757,0.06994656,3679.2,3678.9,2.71814]
[1732989977982,0.06994656,3679.2,3679.0,2.71812]
[1732989978391,0.802,3679.4,3679.1,2.71803]
[1732989978587,0.54022016,3679.2,3679.1,2.71803]
[1732989979110,0.54022016,3679.2,3678.9,2.71814]
[1732989979809,0.54022016,3679.2,3678.7,2.71834]
[1732989980665,0.54022016,3679.2,3678.9,2.71819]
[1732989980869,0.06740572,3679.1,3678.9,2.71819]
[1732989981062,0.06740572,3679.1,3678.6,2.7184]
[1732989981591,0.06740572,3679.1,3678.5,2.71849]
[1732989981777,0.06740572,3679.1,3678.7,2.7183]
[1732989982105,0.06740572,3679.1,3678.8,2.71826]
[1732989983103,0.06740572,3679.1,3678.9,2.71819]
[1732989984775,0.06740572,3679.1,3679.0,2.71812]
[1732989984973,0.06740572,3679.1,3679.0,3.54862]
[1732989986402,0.06740572,3679.1,3679.0,4.175304]
[1732989986610,0.54022016,3679.2,3679.0,4.175304]
[1732989986611,0.54022016,3679.2,3679.1,2.71805]
[1732989987214,0.6076967,3679.2,3679.1,2.71805]
[1732989987780,0.6076967,3679.2,3678.8,2.71823]
[1732989988013,0.8027,3679.1,3678.5,2.71842]
[1732989988167,2.59384346,3678.8,3678.3,2.71864]
[1732989988367,0.8027,3678.7,3678.3,2.71859]
[1732989988590,0.0671569,3678.6,3678.3,2.71859]
[1732989988837,0.0671569,3678.6,3678.4,2.71856]
[1732989989033,0.0671569,3678.6,3678.2,2.71868]
[1732989989242,2.59384346,3678.4,3678.0,2.71881]
[1732989989391,0.8027,3678.3,3678.0,2.71881]
[1732989989726,0.86969242,3678.3,3677.9,2.71893]
[1732989990038,0.86969242,3678.3,3678.1,2.71874]
[1732989990329,0.86969242,3678.3,3677.9,2.71893]
[1732989992307,0.86969242,3678.3,3678.0,2.71886]
[1732989993920,1.54280757,3678.3,3677.9,2.71893]
[1732989994296,0.55,3678.2,3677.5,2.71918]
[1732989994628,0.61589922,3678.2,3677.6,2.71909]
[1732989995631,5.86271346,3678.0,3677.4,2.71929]
[1732989995828,5.86271346,3678.0,3677.5,2.71922]
[1732989995829,3.14384346,3678.0,3677.5,2.71922]
[1732989996138,0.55,3677.8,3677.5,2.71922]
[1732989996294,0.0655703,3677.7,3677.5,2.71922]
[1732989996494,0.55,3677.6,3677.5,2.71922]
[1732989996700,0.06551545,3677.6,3677.5,2.71922]
[1732989996946,0.55,3677.9,3677.5,2.71922]
[1732989997099,0.06562514,3677.8,3677.6,2.71912]
[1732989997295,0.55,3677.7,3677.3,2.71937]
[1732989997597,1.09939136,3677.7,3677.4,2.71925]
[1732989997798,0.06551545,3677.6,3677.4,2.71925]
[1732989998526,0.06551545,3677.6,3677.3,2.71937]
[1732989998715,0.61551545,3677.6,3677.5,2.71923]
[1732990000957,0.61551545,3677.6,3677.3,2.71931]
[1732990001761,0.8254,3677.5,3677.3,2.71931]
[1732990001961,0.61540574,3677.4,3677.1,2.71953]
[1732990002522,0.61540574,3677.4,3676.9,2.71966]
[1732990002724,0.61540574,3677.4,3677.2,2.71945]
[1732990003337,0.61540574,3677.4,3677.3,2.71938]
[1732990005926,0.06540574,3677.4,3677.3,2.71938]
[1732990006327,0.55,3677.5,3677.4,2.71931]
[1732990008483,0.61540081,3677.5,3677.4,2.71931]
[1732990008687,0.06540081,3677.5,3677.4,2.71931]
[1732990009112,0.55,3677.6,3677.5,2.71923]
[1732990009500,0.54939136,3677.7,3677.6,2.71916]
[1732990009700,0.54939136,3677.7,3677.6,3.61518]
[1732990009902,0.8254,3678.3,3678.2,2.71872]
[1732990010528,0.8254,3678.3,3678.0,2.71881]
[1732990011233,0.55,3678.2,3678.0,2.71881]
[1732990011730,0.55,3678.2,3678.1,2.71879]
[1732990012529,0.8254,3679.1,3678.6,2.71838]
[1732990012719,1.07884405,3679.1,3678.7,2.71834]
[1732990013106,0.8254,3679.1,3678.7,2.71834]
[1732990013303,1.07887607,3679.1,3678.7,2.71834]
[1732990013486,0.55,3679.0,3678.9,2.7182]
[1732990013691,0.97227195,3679.0,3678.9,2.7182]
[1732990014003,0.8254,3679.1,3679.0,2.71812]
[1732990014539,2.59384346,3679.2,3678.9,2.7182]
[1732990014730,2.59384346,3679.2,3679.1,2.71805]
[1732990015094,0.8254,3679.3,3679.1,2.71805]
[1732990015321,0.8254,3679.3,3679.2,2.71798]
[1732990015643,1.74267849,3679.3,3679.2,2.71798]
[1732990017039,2.27694324,3679.3,3679.2,2.71798]
[1732990017390,2.53048469,3679.3,3679.2,2.71798]
[1732990017593,0.55,3679.2,3679.0,2.71812]
[1732990017795,0.55,3679.2,3679.1,2.71805]
[1732990018298,0.61452206,3679.2,3679.1,2.71805]
[1732990018618,0.06452206,3679.2,3679.1,2.71805]
[1732990020636,0.55,3679.1,3678.8,2.71826]
[1732990020824,0.55,3679.1,3679.0,2.71812]
[1732990021225,0.55,3679.2,3679.1,2.71805]
[1732990022094,0.61396334,3679.2,3679.1,2.71805]
[1732990023714,0.61396334,3679.2,3679.1,2.16271569]
[1732990024027,0.61396334,3679.2,3678.9,2.71818]
[1732990024234,0.61396334,3679.2,3679.1,2.71805]
[1732990024933,0.61396334,3679.2,3678.9,2.71817]
[1732990025244,3.2078068,3679.2,3678.9,2.71814]
[1732990025403,3.2078068,3679.2,3679.0,2.7181]
[1732990025918,3.58201396,3679.2,3679.0,2.71811]
[1732990026507,3.58201396,3679.2,3679.0,2.71806]
[1732990026708,3.2078068,3679.2,3679.1,2.71805]
[1732990026908,1.78483678,3679.2,3679.1,2.71805]
[1732990031733,0.7904,3679.1,3678.9,2.71819]
[1732990032145,0.06271468,3679.0,3678.9,2.71819]
[1732990032523,0.06271468,3679.0,3678.7,2.71834]
[1732990032719,0.55,3678.5,3678.3,2.71858]
[1732990032958,1.17087344,3678.3,3678.2,2.71872]
[1732990033159,1.72087344,3678.3,3678.0,2.71882]
[1732990033332,1.72087344,3678.1,3678.0,2.71882]
[1732990033923,1.78298663,3678.1,3678.0,2.71882]
[1732990034961,0.61211319,3678.1,3678.0,2.71882]
[1732990035163,0.61211319,3678.1,3677.8,2.71901]
[1732990035477,0.61211319,3678.1,3677.9,2.71891]
[1732990035637,0.55,3678.0,3677.9,2.71891]
[1732990035836,1.00912352,3678.0,3677.5,2.71923]
[1732990036051,1.00912352,3678.0,3677.2,0.7958]
[1732990036052,0.55,3677.7,3677.4,2.7193]
[1732990036862,0.55,3677.5,3677.4,2.7193]
[1732990037336,0.61161515,3677.5,3677.4,2.7193]
[1732990039326,0.61161515,3677.5,3677.2,2.71945]
[1732990039553,0.55,3677.4,3677.2,2.71945]
[1732990039747,0.0614972,3677.3,3677.2,2.71945]
[1732990040531,0.6114972,3677.3,3677.2,2.71945]
[1732990044276,0.0614972,3677.3,3677.2,2.71945]
[1732990044634,0.53075876,3677.5,3677.4,2.71931]
[1732990045168,0.5923303,3677.5,3677.4,2.71931]
[1732990046458,1.1423303,3677.5,3676.6,0.7784]
[1732990046628,3.14612201,3677.4,3677.0,2.71954]
[1732990046834,0.55,3677.2,3677.0,2.71954]
[1732990047079,0.06139435,3677.1,3676.9,2.71967]
[1732990047430,3.96342201,3677.4,3676.9,2.71967]
[1732990047832,0.55,3677.2,3676.9,2.71967]
[1732990048058,0.06139435,3677.1,3676.8,2.71974]
[1732990048573,0.55,3677.0,3676.8,2.71974]
[1732990048732,0.06121775,3676.9,3676.6,3.49829]
[1732990049079,0.06121775,3676.9,3676.7,2.71982]
[1732990050633,0.61121775,3676.9,3676.8,2.71975]
[1732990054288,1.1496956,3676.9,3676.8,2.71975]
[1732990057269,0.06121775,3676.9,3676.8,4.06845609]
[1732990057783,0.55,3677.2,3677.1,2.71949]
[1732990057984,0.61136972,3677.2,3677.1,2.71949]
[1732990058793,1.72213512,3677.2,3676.9,2.71966]
[1732990059092,1.17213512,3677.0,3676.9,5.43932]
[1732990059251,1.17213512,3677.0,3676.9,2.71966]
[1732990059451,1.23272746,3677.0,3676.9,2.71966]
[1732990060663,0.06059234,3677.0,3676.9,3.52416]
[1732990061191,1.08517073,3677.2,3677.1,2.71953]
[1732990064157,1.14505579,3677.2,3677.1,2.71953]
[1732990068605,1.39935985,3677.2,3677.1,2.71953]
[1732990069098,1.39936735,3677.2,3677.1,2.71953]
[1732990070066,1.14505579,3677.2,3677.1,2.71953]
[1732990070413,1.39938655,3677.2,3677.1,2.71953]
[1732990073669,1.14505579,3677.2,3677.1,2.71953]
[1732990073869,1.39936537,3677.2,3677.1,2.71953]
[1732990076497,2.20906537,3677.2,3677.1,2.71953]
[1732990077320,2.95421483,3677.2,3677.0,2.71959]
[1732990077611,1.97649627,3677.1,3677.0,2.71959]
[1732990077812,2.03668793,3677.1,3677.0,2.71959]
[1732990081500,2.03668793,3677.1,3676.7,2.71978]
[1732990081704,0.80436115,3677.0,3676.5,3.5459909]
[1732990081878,0.25436115,3676.9,3676.6,2.7199]
[1732990082079,0.55,3676.8,3676.6,2.7199]
[1732990082281,0.55,3676.8,3676.7,2.71983]
[1732990082479,0.55,3677.0,3676.8,2.71973]
[1732990082680,0.25432353,3676.9,3676.8,2.71973]
[1732990082881,0.55,3676.9,3676.8,2.71973]
[1732990083414,0.55,3677.0,3676.8,2.71973]
[1732990084531,0.55,3677.0,3676.9,2.71968]
[1732990084695,0.80430011,3677.0,3676.9,2.71968]
[1732990085503,0.86375749,3677.0,3676.9,2.71968]
[1732990086419,0.86375749,3677.0,3676.7,2.71982]
[1732990086606,1.72213512,3676.8,3676.7,2.71982]
[1732990086810,1.78014229,3676.8,3676.7,2.71982]
[1732990088403,0.60800717,3676.8,3676.7,2.71982]
[1732990089605,0.05800717,3676.8,3676.7,2.71982]
[1732990089953,0.55,3677.0,3676.9,2.71968]
[1732990090921,0.80421149,3677.0,3676.9,2.71968]
[1732990091108,0.55,3677.0,3676.9,2.71968]
[1732990091514,0.80421591,3677.0,3676.9,2.71968]
[1732990092019,0.55,3677.0,3676.9,2.71968]
[1732990092215,0.80420208,3677.0,3676.9,2.71968]
[1732990093429,0.86106034,3677.0,3676.9,2.71968]
[1732990093837,0.860998,3677.0,3676.9,2.71968]
[1732990094137,0.60685826,3677.0,3676.9,2.71968]
[1732990094341,0.86096475,3677.0,3676.9,2.71968]
[1732990097350,0.86096475,3677.0,3676.7,2.71977]
[1732990097500,0.86093967,3677.0,3676.7,2.71977]
[1732990097702,0.25408141,3676.9,3676.7,2.71977]
[1732990097914,0.60685826,3677.0,3676.7,2.71977]
[1732990098204,0.55,3676.8,3676.7,2.71977]
[1732990098400,0.05585069,3676.8,3676.7,2.71977]
[1732990098627,0.55,3677.0,3676.7,2.71977]
[1732990098838,0.55,3676.8,3676.7,2.71977]
[1732990099033,0.85986478,3676.8,3676.7,2.71977]
[1732990099541,0.85980697,3676.8,3676.7,2.71977]
[1732990100539,3.2699,3676.6,3676.5,0.0024409]
[1732990100698,4.33615628,3676.6,3676.5,0.0024409]
[1732990100902,5.56390195,3676.6,3676.5,0.0024409]
[1732990101251,3.25019348,3676.6,3676.5,0.0024409]
[1732990101459,6.31202085,3676.6,3676.5,0.0024409]
[1732990102745,6.71780456,3676.6,3676.5,0.0024409]
[1732990103559,6.31202085,3676.6,3676.5,0.0024409]
[1732990103730,6.71780456,3676.6,3676.5,0.0024409]
[1732990103913,3.59212085,3676.6,3676.5,0.0024409]
[1732990104118,3.99790456,3676.6,3676.5,0.0024409]
[1732990104316,6.31202085,3676.6,3676.5,0.0024409]
[1732990104618,6.71780456,3676.6,3676.5,0.0024409]
[1732990104820,11.37614227,3676.6,3676.5,0.0024409]
[1732990105113,11.54622802,3676.6,3676.5,0.0024409]
[1732990105340,12.09138206,3676.6,3676.5,0.0024409]
[1732990105653,10.95594834,3676.6,3676.5,0.0024409]
[1732990105953,10.78586259,3676.6,3676.5,0.0024409]
[1732990106262,10.9559491,3676.6,3676.5,0.0024409]
[1732990106446,9.37700954,3676.6,3676.5,0.0024409]
[1732990106959,10.95492006,3676.6,3676.5,0.0024409]
[1732990107255,12.09035378,3676.6,3676.5,0.0024409]
[1732990107483,10.95492006,3676.6,3676.5,0.0024409]
[1732990107976,10.75558878,3676.6,3676.5,0.0024409]
[1732990108625,10.7542941,3676.6,3676.5,0.0024409]
[1732990109351,9.81629419,3676.6,3676.5,0.0024409]
[1732990109531,1.38024748,3676.4,3675.8,2.72043]
[1732990109732,1.72213512,3675.9,3675.8,2.72043]
[1732990110280,1.77748915,3675.9,3675.8,2.72043]
[1732990112244,0.60535403,3675.9,3675.8,2.72043]
[1732990112449,1.77748915,3675.9,3675.8,2.72043]
[1732990114643,2.30972451,3675.9,3675.8,2.72043]
[1732990116297,1.13758939,3675.9,3675.8,2.72043]
[1732990117653,1.13758939,3675.9,3675.8,3.51523]
[1732990119813,0.05535403,3675.9,3675.8,4.138816]
[1732990120234,1.17213512,3676.4,3675.8,4.138816]
[1732990120444,0.55,3676.4,3676.3,2.72012]
[1732990120763,1.34437903,3676.4,3676.3,2.72012]
[1732990121061,1.39998223,3676.4,3676.3,2.72012]
[1732990121633,2.57215878,3676.4,3676.3,2.72012]
[1732990121845,2.31918196,3676.4,3676.3,2.72012]
[1732990122030,1.14704684,3676.4,3676.3,2.72012]
[1732990122242,2.31918196,3676.4,3676.3,2.72012]
[1732990124566,2.31918196,3676.4,3676.3,3.51492]
[1732990125377,0.59704684,3676.4,3676.3,3.51492]
[1732990125525,0.59704684,3676.4,3676.3,4.138433]
[1732990126065,0.54144364,3676.4,3676.3,4.138433]
[1732990126226,0.5971227,3676.4,3676.3,4.138433]
[1732990126619,0.54144364,3676.4,3676.3,4.138433]
[1732990126873,0.5971227,3676.4,3676.3,4.138433]
[1732990127526,0.54144364,3676.4,3676.3,4.138433]
[1732990127757,0.5971227,3676.4,3676.3,4.138433]
[1732990128433,0.54144364,3676.4,3676.3,4.138433]
[1732990128771,0.50613944,3676.4,3676.3,4.138433]
[1732990129225,0.56185221,3676.4,3676.3,4.138433]
[1732990129427,1.11185221,3676.4,3676.3,3.51492]
[1732990129623,1.11185221,3676.4,3676.3,2.72012]
[1732990130762,1.36526149,3676.4,3676.3,2.72012]
[1732990132445,1.36522894,3676.4,3676.3,2.72012]
[1732990133349,1.11185221,3676.4,3676.3,2.72012]
[1732990133879,1.36530223,3676.4,3676.3,2.72012]
[1732990134396,1.11185221,3676.4,3676.3,2.72012]
[1732990135217,1.11185221,3676.4,3676.3,3.49382]
[1732990137885,0.56185221,3676.4,3676.3,3.49382]
[1732990138485,0.50613944,3676.4,3676.3,3.49382]
[1732990138687,0.56183618,3676.4,3676.3,3.49382]
[1732990140087,0.50613944,3676.4,3676.3,3.49382]
[1732990140274,0.56183618,3676.4,3676.3,3.49382]
[1732990141275,0.50613944,3676.4,3676.3,3.49382]
[1732990141479,0.56183875,3676.4,3676.3,3.49382]
[1732990141903,0.50613944,3676.4,3676.3,3.49382]
[1732990143624,0.50613944,3676.4,3676.3,2.72012]
[1732990144118,0.56184294,3676.4,3676.3,2.72012]
[1732990145517,0.81566109,3676.4,3676.3,2.72012]
[1732990146940,0.81566109,3676.4,3675.8,0.01973164]
[1732990147238,1.17213512,3676.2,3676.1,2.72021]
[1732990147378,1.42595327,3676.2,3676.1,2.72021]
[1732990147728,1.88771032,3676.2,3676.1,2.72021]
[1732990147923,1.48152256,3676.2,3676.1,2.72021]
[1732990148076,1.88770728,3676.2,3676.1,2.72021]
[1732990148921,1.88778134,3676.2,3676.1,2.72021]
[1732990149479,1.48158015,3676.2,3676.1,2.72021]
[1732990150262,0.30944503,3676.2,3676.1,3.48011]
[1732990150433,0.05556929,3676.2,3676.1,4.10213516]
[1732990150799,0.50613944,3676.4,3676.3,2.72012]
[1732990150981,0.76008611,3676.4,3676.3,2.72012]
[1732990151187,0.56175528,3676.4,3676.3,2.72012]
[1732990153196,0.05561584,3676.4,3676.3,2.72012]
[1732990153401,0.05561584,3676.4,3676.3,3.40234552]
[1732990153597,1.17213512,3676.8,3676.7,2.71983]
[1732990153798,1.42611381,3676.8,3676.7,2.71983]
[1732990154718,0.30988737,3676.8,3676.7,2.71983]
[1732990155236,0.86217814,3676.8,3676.7,2.71983]
[1732990155788,0.86218075,3676.8,3676.7,2.71983]
[1732990157443,0.8621498,3676.8,3676.7,2.71983]
[1732990159205,2.03428492,3676.8,3676.7,2.71983]
[1732990160398,2.31833341,3676.8,3676.5,2.71991]
[1732990160604,1.97833512,3676.6,3676.3,2.72011]
[1732990160843,1.17213512,3676.4,3676.3,2.72011]
[1732990161139,1.48121392,3676.4,3676.1,2.72026]
[1732990161340,1.22732215,3676.4,3676.1,2.72026]
[1732990161540,1.22732215,3676.4,3676.2,2.7202]
[1732990161541,0.25385746,3676.3,3676.2,2.7202]
[1732990161841,0.25385746,3676.3,3675.9,2.72041]
[1732990162052,1.42599258,3676.2,3676.1,2.72027]
[1732990162208,1.42599258,3676.2,3675.9,2.72041]
[1732990162396,1.06002192,3676.1,3675.9,2.72041]
[1732990162751,0.05502267,3676.0,3675.9,2.72041]
[1732990163647,1.22715779,3676.0,3675.9,2.72041]
[1732990164740,1.48090947,3676.0,3675.9,2.72041]
[1732990165296,1.22715779,3676.0,3675.9,2.72041]
[1732990165810,1.48091325,3676.0,3675.7,2.72055]
[1732990166014,0.25375546,3675.9,3675.7,2.72055]
[1732990166324,0.05488928,3675.8,3675.7,2.72055]
[1732990166736,1.17213512,3676.0,3675.5,2.72068]
[1732990166896,1.22710765,3675.8,3675.5,2.72068]
[1732990168096,1.22710765,3675.8,3675.7,2.72057]
[1732990168291,0.59831798,3675.8,3675.7,2.72057]
[1732990171816,0.59831798,3675.8,3675.7,3.54087]
[1732990171990,0.59831798,3675.8,3675.7,4.167025]
[1732990172749,0.05497253,3675.8,3675.7,4.167025]
[1732990173099,0.55042026,3676.1,3675.7,4.167025]
[1732990173298,1.38024748,3676.5,3676.3,2.72012]
[1732990173501,1.42562791,3676.4,3676.0,2.72028]
[1732990173847,0.61359362,3676.3,3676.0,2.72028]
[1732990174000,0.25349608,3676.2,3676.0,2.72028]
[1732990174199,0.36009754,3676.3,3676.0,2.72028]
[1732990174430,1.42562399,3676.2,3675.8,2.72047]
[1732990174642,1.17213512,3676.2,3675.8,2.72047]
[1732990174841,0.05511186,3676.1,3675.9,2.72041]
[1732990175045,0.05511186,3676.1,3676.0,2.72034]
[1732990175341,1.17213512,3676.2,3675.7,2.72056]
[1732990175542,0.05513497,3676.1,3675.9,2.72042]
[1732990175920,0.87673497,3676.1,3675.9,2.72042]
[1732990176695,1.13522183,3676.1,3675.8,2.72047]
[1732990176844,0.25348226,3676.0,3675.5,2.72071]
[1732990177191,0.05503364,3675.9,3675.6,2.72059]
[1732990177495,1.17213512,3675.9,3675.5,2.72071]
[1732990177692,0.05497875,3675.8,3675.5,2.72071]
[1732990177856,0.05497875,3675.8,3675.6,2.72063]
[1732990179155,0.05497875,3675.8,3675.2,3.6321463]